bitfinex-derivatives/quotes_BTCF0:USTF0_20250905
["timestamp","ask_amount","ask_price","bid_price","bid_amount"]
[1757081650881,0.87501005,112310.0,112300.0,0.09054]
[1757081651476,0.82501005,112310.0,112300.0,0.09054]
[1757081651976,0.82501005,112310.0,112300.0,0.05785]
[1757081652169,0.85749005,112310.0,112300.0,0.001]
[1757081653583,1.55418434,112310.0,112300.0,0.001]
[1757081653979,1.10749005,112310.0,112300.0,0.001]
[1757081654377,2.15361005,112310.0,112300.0,0.001]
[1757081654574,2.60030434,112310.0,112300.0,0.001]
[1757081654785,0.07676,112300.0,112290.0,0.00136]
[1757081654985,0.77756,112300.0,112290.0,0.00136]
[1757081656786,0.7571,112300.0,112290.0,0.05496]
[1757081657290,0.7581,112300.0,112290.0,0.00236]
[1757081657587,0.77793,112300.0,112290.0,0.00236]
[1757081657883,0.77793,112300.0,112290.0,0.00246]
[1757081658187,1.22462429,112300.0,112290.0,0.00246]
[1757081658587,0.77793,112300.0,112290.0,0.00246]
[1757081658884,0.77793,112300.0,112290.0,0.002419]
[1757081659078,0.05597,112260.0,112250.0,0.44719]
[1757081659282,0.39597,112260.0,112250.0,0.89378429]
[1757081659789,0.05597,112260.0,112250.0,0.89378429]
[1757081659988,0.39328,112280.0,112250.0,0.89378429]
[1757081660189,0.05597,112270.0,112260.0,0.08912]
[1757081660381,0.42597,112270.0,112260.0,0.08912]
[1757081660779,0.42597,112270.0,112260.0,0.0536]
[1757081660979,0.3608,112280.0,112260.0,0.53581429]
[1757081661185,0.40597,112280.0,112270.0,0.08912]
[1757081663295,0.40597,112280.0,112270.0,0.09112]
[1757081663495,0.40597,112280.0,112270.0,0.54109564]
[1757081663696,0.37697,112280.0,112270.0,0.54309564]
[1757081663896,0.05697,112280.0,112270.0,0.54309564]
[1757081664095,0.42697,112280.0,112270.0,0.54309564]
[1757081664392,0.42697,112280.0,112270.0,0.09312]
[1757081664596,0.45945,112280.0,112270.0,0.004]
[1757081664890,0.42697,112280.0,112270.0,0.09312]
[1757081665090,0.40697,112280.0,112270.0,0.54309564]
[1757081665285,0.40697,112280.0,112270.0,0.09312]
[1757081665496,0.43945,112280.0,112270.0,0.004]
[1757081666295,0.40697,112280.0,112270.0,0.54309564]
[1757081667192,0.43945,112280.0,112270.0,0.50757564]
[1757081667789,0.40697,112280.0,112270.0,0.54309564]
[1757081668698,0.40697,112280.0,112270.0,0.50757564]
[1757081668894,1.25022564,112280.0,112270.0,0.004]
[1757081669599,2.27474564,112280.0,112270.0,0.004]
[1757081669994,1.82477,112280.0,112270.0,0.004]
[1757081670394,1.82477,112280.0,112270.0,0.002]
[1757081671187,2.27474564,112280.0,112270.0,0.002]
[1757081671498,1.25022564,112280.0,112270.0,0.002]
[1757081671692,2.97156128,112280.0,112250.0,0.00314]
[1757081671901,0.81091,112260.0,112250.0,0.0150461]
[1757081672097,2.63188564,112260.0,112250.0,0.0150461]
[1757081672797,1.16091,112260.0,112250.0,0.0150461]
[1757081673101,0.40597,112260.0,112250.0,0.55714174]
[1757081673301,0.40597,112260.0,112250.0,0.1071661]
[1757081673700,0.40597,112260.0,112250.0,0.09526]
[1757081673999,0.40597,112260.0,112250.0,0.095219]
[1757081674199,0.76677,112260.0,112250.0,0.095219]
[1757081674499,0.76877,112260.0,112250.0,0.002099]
[1757081674897,1.21874564,112260.0,112250.0,0.002099]
[1757081675498,0.76877,112260.0,112250.0,0.002099]
[1757081676205,0.76877,112260.0,112250.0,0.055699]
[1757081676501,0.40797,112260.0,112250.0,0.055699]
[1757081676705,0.40797,112260.0,112250.0,0.54119464]
[1757081677097,0.06797,112260.0,112250.0,0.54119464]
[1757081677493,0.06797,112260.0,112250.0,0.79119464]
[1757081677698,0.012,112260.0,112250.0,1.15209464]
[1757081677900,0.012,112260.0,112250.0,0.702119]
[1757081678097,0.012,112260.0,112250.0,1.15209464]
[1757081679198,0.012,112260.0,112250.0,1.24116554]
[1757081679400,0.002,112260.0,112250.0,1.24116554]
[1757081679603,0.002,112260.0,112250.0,0.99116554]
[1757081679905,0.002,112260.0,112250.0,0.90209464]
[1757081680292,0.002,112260.0,112250.0,0.90099564]
[1757081681195,0.05797,112260.0,112250.0,0.09022]
[1757081681596,0.37797,112260.0,112250.0,0.09022]
[1757081681800,0.73877,112260.0,112250.0,0.0011]
[1757081682000,0.73877,112260.0,112250.0,0.0547]
[1757081682199,0.08797,112260.0,112250.0,0.54019564]
[1757081682400,0.08797,112260.0,112250.0,0.90099564]
[1757081682601,0.002,112260.0,112250.0,1.15099564]
[1757081682904,0.372,112260.0,112250.0,1.15099564]
[1757081683105,0.372,112260.0,112250.0,2.15803564]
[1757081684199,0.002,112260.0,112250.0,2.15803564]
[1757081684417,0.002,112260.0,112250.0,2.42233564]
[1757081684801,0.362,112260.0,112250.0,2.42233564]
[1757081685002,0.002,112260.0,112250.0,2.15803564]
[1757081685203,0.002,112260.0,112250.0,2.24710654]
[1757081685504,0.0001,112270.0,112260.0,0.08507]
[1757081685705,0.0001,112280.0,112270.0,0.08507]
[1757081686002,0.38,112280.0,112270.0,1.84697564]
[1757081686696,0.3609,112290.0,112280.0,0.05293]
[1757081686902,0.46247324,112300.0,112290.0,0.08507]
[1757081687108,0.77237324,112300.0,112290.0,0.53514564]
[1757081687706,0.07719324,112300.0,112290.0,0.89594564]
[1757081687905,0.07719324,112300.0,112290.0,1.89694564]
[1757081688103,0.05352205,112300.0,112290.0,1.89694564]
[1757081688303,0.37352205,112300.0,112290.0,1.89694564]
[1757081688510,0.03352205,112300.0,112290.0,1.89694564]
[1757081688803,0.36752205,112300.0,112290.0,1.89794564]
[1757081689403,0.36752205,112300.0,112290.0,0.89694564]
[1757081689705,0.39390205,112300.0,112290.0,1.08637]
[1757081689903,0.39390205,112300.0,112290.0,0.53614564]
[1757081690106,0.75470205,112300.0,112290.0,0.08617]
[1757081690506,0.39390205,112300.0,112290.0,0.08617]
[1757081690810,0.39390205,112300.0,112290.0,0.44697]
[1757081691207,0.41390205,112300.0,112290.0,0.08617]
[1757081692310,0.42390205,112300.0,112290.0,0.08617]
[1757081692507,0.41390205,112300.0,112290.0,0.08617]
[1757081692714,0.02952205,112300.0,112290.0,0.44697]
[1757081692913,0.02952205,112300.0,112290.0,0.89694564]
[1757081693409,0.38952205,112300.0,112290.0,0.89694564]
[1757081693609,0.44390205,112300.0,112290.0,0.53614564]
[1757081694108,0.44390205,112300.0,112290.0,0.08617]
[1757081694412,0.44390205,112300.0,112290.0,0.89694564]
[1757081694413,0.02952205,112300.0,112290.0,0.89694564]
[1757081694613,0.02952205,112300.0,112290.0,0.53614564]
[1757081694808,0.08390205,112300.0,112290.0,0.89694564]
[1757081695609,0.06038,112300.0,112290.0,0.53614564]
[1757081696114,0.06038,112300.0,112290.0,1.53058564]
[1757081696314,0.06038,112300.0,112290.0,1.88934564]
[1757081696509,0.06038,112300.0,112290.0,0.89694564]
[1757081696710,0.06038,112300.0,112290.0,0.53614564]
[1757081697113,0.06038,112300.0,112290.0,0.05403]
[1757081697315,0.06038,112300.0,112290.0,0.53614564]
[1757081697516,0.06038,112300.0,112290.0,0.08617]
[1757081697711,0.06038,112300.0,112290.0,0.53614564]
[1757081698015,0.39038,112300.0,112290.0,0.53614564]
[1757081698420,0.39038,112300.0,112290.0,0.08617]
[1757081699218,0.39038,112300.0,112290.0,0.53614564]
[1757081699612,0.39038,112300.0,112290.0,1.07433]
[1757081699916,0.39038,112300.0,112290.0,1.52430564]
[1757081700312,0.06038,112300.0,112290.0,1.88510564]
[1757081700617,0.006,112300.0,112290.0,1.52430564]
[1757081700913,0.005,112300.0,112290.0,2.13510564]
[1757081701120,0.005,112300.0,112290.0,1.14694564]
[1757081701319,0.005,112300.0,112290.0,2.13446564]
[1757081701511,0.05938,112300.0,112290.0,0.08617]
[1757081701715,0.76018,112300.0,112290.0,0.75813]
[1757081702114,0.67018,112300.0,112290.0,0.75813]
[1757081702415,0.67018,112300.0,112290.0,1.52310564]
[1757081702718,0.30938,112300.0,112290.0,1.52210564]
[1757081702917,0.30938,112300.0,112290.0,1.07213]
[1757081703309,0.30938,112300.0,112290.0,0.08617]
[1757081703611,0.30938,112300.0,112290.0,1.52134564]
[1757081704614,0.32938,112300.0,112290.0,1.52134564]
[1757081705719,0.30938,112300.0,112290.0,1.88214564]
[1757081705912,0.005,112300.0,112290.0,2.13214564]
[1757081706111,0.005,112300.0,112290.0,2.22118464]
[1757081706307,0.005,112300.0,112290.0,1.68217]
[1757081706620,0.005,112300.0,112290.0,1.42889]
[1757081706913,0.005,112300.0,112290.0,0.44697]
[1757081707111,0.05938,112300.0,112290.0,1.51790564]
[1757081707312,0.42018,112300.0,112290.0,1.06781]
[1757081707518,0.42018,112300.0,112290.0,0.08617]
[1757081707719,0.42018,112300.0,112290.0,1.06797]
[1757081708115,0.05938,112300.0,112290.0,1.06797]
[1757081708620,0.05938,112300.0,112290.0,1.51794564]
[1757081708817,0.05938,112300.0,112290.0,0.53614564]
[1757081709021,0.05938,112300.0,112290.0,1.51702564]
[1757081709316,0.05938,112300.0,112290.0,1.06705]
[1757081709518,0.0001,112310.0,112300.0,0.089031]
[1757081709819,0.05448,112320.0,112310.0,0.08507]
[1757081710116,0.05438,112320.0,112310.0,0.89594564]
[1757081710324,0.05438,112320.0,112310.0,1.87818564]
[1757081710617,0.05438,112320.0,112310.0,0.08517]
[1757081710822,0.66518,112320.0,112310.0,0.05303]
[1757081711022,0.68242,112320.0,112310.0,0.87238]
[1757081711223,0.68242,112320.0,112310.0,0.0001]
[1757081711516,0.05438,112320.0,112310.0,0.08517]
[1757081711718,0.68342,112320.0,112310.0,0.0021]
[1757081711916,0.68342,112320.0,112310.0,0.05603]
[1757081712222,0.30538,112320.0,112310.0,0.53814564]
[1757081712423,0.001,112320.0,112310.0,0.53814564]
[1757081712626,0.001,112320.0,112310.0,0.89894564]
[1757081712918,0.001,112320.0,112310.0,0.0031]
[1757081712919,0.68531,112320.0,112310.0,0.0031]
[1757081713218,0.71531,112320.0,112310.0,0.0031]
[1757081713425,0.03334,112300.0,112280.0,0.27759]
[1757081713619,0.05438,112290.0,112280.0,0.33052]
[1757081713824,0.05338,112290.0,112280.0,0.33052]
[1757081714024,0.05338,112290.0,112280.0,0.08616]
[1757081714320,0.05238,112290.0,112280.0,0.13389345]
[1757081714623,0.05238,112290.0,112280.0,0.16603345]
[1757081714820,0.05338,112290.0,112280.0,0.13789345]
[1757081715124,0.4265,112290.0,112280.0,0.08496345]
[1757081715321,0.4265,112290.0,112280.0,0.13842345]
[1757081715924,0.41318,112290.0,112280.0,0.16792345]
[1757081716125,0.3608,112290.0,112280.0,0.61789909]
[1757081716327,0.3608,112290.0,112280.0,0.16792345]
[1757081716328,0.05512,112290.0,112280.0,0.16792345]
[1757081716511,0.002,112290.0,112280.0,1.06887473]
[1757081716715,0.002,112290.0,112280.0,1.42867473]
[1757081716916,0.05712,112290.0,112280.0,0.97869909]
[1757081717216,0.05712,112290.0,112280.0,0.52872345]
[1757081717520,0.08855,112290.0,112280.0,0.49622345]
[1757081717720,0.05512,112290.0,112280.0,0.52772345]
[1757081717914,0.05512,112290.0,112280.0,0.97769909]
[1757081718117,0.05512,112290.0,112280.0,0.52772345]
[1757081718314,0.001,112290.0,112280.0,0.98069909]
[1757081718519,0.001,112290.0,112280.0,1.68067473]
[1757081718916,0.39223,112330.0,112280.0,1.68067473]
[1757081719118,0.31512,112330.0,112320.0,0.53593564]
[1757081719321,0.05512,112330.0,112320.0,0.53593564]
[1757081720719,0.05512,112330.0,112320.0,0.54038564]
[1757081721315,1.14277564,112330.0,112320.0,0.00445]
[1757081721517,2.13801564,112330.0,112290.0,0.3933]
[1757081721717,0.41492,112300.0,112290.0,0.0325]
[1757081721917,0.41492,112300.0,112290.0,0.08596]
[1757081722124,0.44535,112300.0,112280.0,0.38642731]
[1757081722326,0.41492,112300.0,112280.0,0.05654731]
[1757081722622,0.44535,112300.0,112280.0,0.05654731]
[1757081722819,0.41592,112290.0,112280.0,0.02849731]
[1757081723419,0.41592,112290.0,112280.0,0.00445]
[1757081723613,0.05512,112290.0,112280.0,0.09041]
[1757081724014,0.05212,112290.0,112280.0,0.09041]
[1757081724616,0.001,112290.0,112280.0,0.79032824]
[1757081724824,0.001,112290.0,112280.0,1.71197]
[1757081725121,0.001,112290.0,112280.0,2.15888824]
[1757081725526,0.001,112290.0,112280.0,1.15412824]
[1757081725829,0.05612,112290.0,112280.0,0.09641]
[1757081726630,0.05488335,112290.0,112280.0,0.54332824]
[1757081726829,0.41592,112300.0,112290.0,0.08596]
[1757081727632,0.41592,112300.0,112290.0,0.05346]
[1757081728128,0.41592,112300.0,112290.0,0.001]
[1757081728318,0.41692,112300.0,112290.0,0.002]
[1757081729627,0.41692,112300.0,112290.0,0.05546]
[1757081730133,0.41692,112300.0,112290.0,0.002]
[1757081730529,0.41892,112300.0,112290.0,0.001]
[1757081730826,0.41892,112300.0,112290.0,0.08696]
[1757081731026,0.42092,112300.0,112290.0,0.08696]
[1757081731230,0.005,112300.0,112290.0,0.78387824]
[1757081731731,0.005,112300.0,112290.0,1.697]
[1757081732031,0.005,112300.0,112290.0,1.447]
[1757081732226,0.005,112300.0,112290.0,0.53397824]
[1757081732427,0.67092,112300.0,112290.0,0.0011]
[1757081732632,0.70135,112300.0,112290.0,0.0011]
[1757081732929,0.70135,112300.0,112290.0,0.05456]
[1757081732930,0.67092,112300.0,112290.0,0.05456]
[1757081733130,0.31012,112300.0,112290.0,0.08706]
[1757081733340,0.42092,112300.0,112290.0,0.08706]
[1757081734130,0.005,112300.0,112290.0,0.447819]
[1757081734331,0.005,112300.0,112290.0,1.14473724]
[1757081734530,0.005,112300.0,112290.0,1.696859]
[1757081734732,0.005,112300.0,112290.0,2.14377724]
[1757081735034,0.005,112300.0,112290.0,1.78297724]
[1757081735332,0.3658,112300.0,112290.0,1.336059]
[1757081735725,0.3658,112300.0,112290.0,0.001059]
[1757081735931,0.68705,112300.0,112290.0,0.001059]
[1757081736434,0.67092,112300.0,112290.0,0.001059]
[1757081736636,0.67092,112300.0,112290.0,0.054519]
[1757081736832,0.68705,112300.0,112290.0,0.001059]
[1757081737132,0.005,112300.0,112290.0,0.78393724]
[1757081737336,0.005,112300.0,112290.0,1.14473724]
[1757081737538,0.005,112300.0,112290.0,2.14281724]
[1757081737832,0.07735,112260.0,112230.0,0.22400869]
[1757081738130,0.41592,112240.0,112230.0,0.19150869]
[1757081738327,0.41592,112240.0,112230.0,0.24496869]
[1757081738531,0.43051071,112240.0,112230.0,0.24496869]
[1757081738727,1.14965895,112240.0,112230.0,0.19150869]
[1757081739234,1.14965895,112240.0,112230.0,0.19250869]
[1757081739430,0.45274071,112240.0,112230.0,0.19250869]
[1757081739932,0.45374071,112240.0,112230.0,0.19250869]
[1757081740131,0.70374071,112240.0,112230.0,0.19250869]
[1757081740329,1.15065895,112240.0,112230.0,0.19250869]
[1757081740534,0.02222,112210.0,112200.0,0.02667983]
[1757081740730,1.88801824,112210.0,112200.0,0.02067983]
[1757081740932,2.13801824,112210.0,112190.0,0.14558819]
[1757081741133,0.85892824,112200.0,112190.0,0.07943819]
[1757081741434,1.10792824,112200.0,112170.0,0.22400869]
[1757081741632,0.3608,112190.0,112180.0,0.0325]
[1757081742527,0.80771824,112190.0,112170.0,0.19150869]
[1757081742732,0.80771824,112180.0,112170.0,0.19150869]
[1757081742933,0.3598,112180.0,112170.0,0.22400869]
[1757081743528,0.43509847,112190.0,112170.0,0.22400869]
[1757081743728,0.43509847,112190.0,112180.0,0.0325]
[1757081743922,0.43509847,112190.0,112170.0,0.22400869]
[1757081744123,0.88201671,112190.0,112170.0,0.22400869]
[1757081744531,0.3608,112180.0,112170.0,0.22400869]
[1757081745131,0.3618,112180.0,112170.0,0.19350869]
[1757081745339,1.05871824,112180.0,112170.0,0.19350869]
[1757081745535,1.05984824,112180.0,112170.0,0.19350869]
[1757081745736,1.05984824,112180.0,112170.0,0.19279869]
[1757081745938,2.78204824,112180.0,112120.0,0.96027157]
[1757081746130,0.3608,112140.0,112120.0,1.01979157]
[1757081746326,0.3608,112140.0,112120.0,0.96467157]
[1757081746734,0.3608,112140.0,112120.0,1.01979157]
[1757081747034,0.3608,112150.0,112130.0,0.08757]
[1757081747244,0.3608,112150.0,112140.0,0.08757]
[1757081747435,0.3608,112170.0,112160.0,0.03245]
[1757081748032,2.086,112180.0,112170.0,0.03245]
[1757081748232,0.81071824,112180.0,112160.0,0.03245]
[1757081748438,0.80771824,112170.0,112140.0,0.39325]
[1757081748737,0.44691824,112150.0,112140.0,0.3608]
[1757081749038,1.81811824,112160.0,112140.0,0.360677]
[1757081749230,0.3608,112150.0,112130.0,0.09593599]
[1757081749438,0.3608,112150.0,112140.0,0.03245]
[1757081749834,0.3608,112150.0,112130.0,0.10043599]
[1757081750040,0.3658,112150.0,112140.0,0.001]
[1757081750433,0.005,112150.0,112140.0,0.39425]
[1757081750635,0.005,112150.0,112140.0,0.64425]
[1757081750831,0.005,112150.0,112140.0,0.28345]
[1757081751036,0.3658,112150.0,112140.0,0.28345]
[1757081751236,0.005,112150.0,112140.0,0.28345]
[1757081751536,0.005,112150.0,112140.0,0.64425]
[1757081751740,0.3608,112160.0,112150.0,0.03245]
[1757081752134,0.3608,112160.0,112140.0,0.03245]
[1757081752334,0.004,112150.0,112140.0,0.03245]
[1757081752537,0.3648,112150.0,112140.0,0.03245]
[1757081752939,0.3618,112150.0,112130.0,0.10043599]
[1757081753142,0.80871824,112150.0,112130.0,0.10043599]
[1757081753338,0.3608,112140.0,112130.0,0.06798599]
[1757081753538,0.37513789,112140.0,112130.0,0.06798599]
[1757081753842,0.3608,112140.0,112130.0,0.06798599]
[1757081754045,0.3608,112140.0,112130.0,0.10043599]
[1757081754340,0.3608,112140.0,112130.0,0.06798599]
[1757081754544,0.6108,112140.0,112130.0,0.06798599]
[1757081754738,1.08671824,112140.0,112130.0,0.06798599]
[1757081755049,1.08771824,112140.0,112130.0,0.06798599]
[1757081755442,1.09271824,112140.0,112130.0,0.06898599]
[1757081755638,0.6458,112140.0,112130.0,0.06898599]
[1757081755840,2.09879824,112140.0,112130.0,0.06898599]
[1757081756035,1.65188,112140.0,112130.0,0.06898599]
[1757081756242,2.09879824,112140.0,112130.0,0.0055]
[1757081756441,2.09879824,112140.0,112130.0,0.0056]
[1757081757051,2.38879824,112140.0,112100.0,0.03245]
[1757081757249,0.80771824,112110.0,112090.0,0.00339977]
[1757081757550,0.80771824,112100.0,112090.0,0.00339977]
[1757081757741,0.81771824,112100.0,112090.0,0.00339977]
[1757081757941,0.4418866,112100.0,112090.0,0.00339977]
[1757081758149,1.2150466,112100.0,112090.0,0.00339977]
[1757081758341,1.4533666,112100.0,112090.0,0.00339977]
[1757081758535,1.90028484,112100.0,112090.0,0.00339977]
[1757081759049,1.46765237,112100.0,112090.0,0.00339977]
[1757081759246,1.14809061,112100.0,112090.0,0.00339977]
[1757081759551,2.54533061,112100.0,112040.0,0.39335]
[1757081759738,0.3608,112060.0,112050.0,0.03245]
[1757081759937,0.7616,112060.0,112030.0,0.28620839]
[1757081760143,0.80771824,112040.0,112030.0,0.26771028]
[1757081760342,0.93073451,112040.0,112000.0,0.88506367]
[1757081760540,0.93073451,112040.0,112010.0,0.03245]
[1757081760541,0.3608,112020.0,112010.0,0.03245]
[1757081760847,0.3608,112030.0,112010.0,0.03245]
[1757081761147,0.3608,112030.0,112020.0,0.03245]
[1757081761148,0.4108,112030.0,112020.0,0.03245]
[1757081761336,0.85771824,112030.0,112000.0,0.55671367]
[1757081761536,0.3608,112020.0,112010.0,0.03245]
[1757081761840,0.7316,112020.0,112000.0,0.55671367]
[1757081762034,0.3608,112010.0,112000.0,0.55671367]
[1757081762241,0.3608,112020.0,112010.0,0.03245]
[1757081762637,0.3608,112020.0,112000.0,0.55671367]
[1757081762844,0.3608,112010.0,112000.0,0.55671367]
[1757081763045,0.3608,112010.0,112000.0,0.52426367]
[1757081763246,0.80771824,112010.0,112000.0,0.52426367]
[1757081763452,0.7208,112010.0,112000.0,0.52426367]
[1757081763843,0.4708,112010.0,112000.0,0.52526367]
[1757081764049,0.4855397,112010.0,112000.0,0.52522267]
[1757081764242,0.4708,112010.0,112000.0,0.383409]
[1757081764441,0.4708,112010.0,112000.0,0.100959]
[1757081764848,0.4708,112010.0,112000.0,0.383409]
[1757081765047,0.3608,112010.0,112000.0,0.383409]
[1757081765348,0.3628,112010.0,112000.0,0.383409]
[1757081765543,0.3628,112010.0,112000.0,0.133409]
[1757081765751,0.3628,112010.0,112000.0,0.383409]
[1757081766252,0.3608,112030.0,112010.0,0.0892619]
[1757081766450,0.3608,112040.0,112030.0,0.03245]
[1757081766641,0.01320602,112070.0,112030.0,0.47936824]
[1757081766838,0.3608,112050.0,112040.0,0.03245]
[1757081767044,0.3708,112050.0,112030.0,0.03245]
[1757081767339,0.3608,112040.0,112010.0,0.44691824]
[1757081767650,0.3608,112020.0,112010.0,0.03245]
[1757081768045,0.3608,112020.0,112000.0,0.57932724]
[1757081768250,0.3608,112010.0,112000.0,0.132409]
[1757081768452,0.3608,112030.0,112020.0,0.03245]
[1757081768652,0.3608,112030.0,112020.0,0.51936824]
[1757081768951,0.3608,112040.0,112030.0,0.03245]
[1757081769146,0.3608,112040.0,112030.0,0.72936824]
[1757081769748,0.3608,112040.0,112030.0,0.32245]
[1757081770055,0.3608,112050.0,112040.0,0.03245]
[1757081770452,0.3608,112050.0,112030.0,0.03245]
[1757081770652,0.3628,112040.0,112030.0,0.03245]
[1757081771555,0.80971824,112040.0,112010.0,1.09565]
[1757081771848,0.80971824,112040.0,112020.0,0.1217051]
[1757081771849,0.3608,112030.0,112020.0,0.1217051]
[1757081772044,0.006,112040.0,112030.0,0.1216971]
[1757081772245,0.3608,112070.0,112050.0,0.1216807]
[1757081772445,0.3608,112070.0,112060.0,0.47936824]
[1757081772646,0.3608,112080.0,112070.0,0.03245]
[1757081772845,0.3608,112080.0,112050.0,0.03245]
[1757081772846,1.16851824,112080.0,112050.0,0.03245]
[1757081773045,0.7216,112060.0,112030.0,0.70665]
[1757081773246,0.47936824,112070.0,112030.0,0.74665]
[1757081773247,0.3608,112040.0,112030.0,0.74665]
[1757081773551,0.3608,112050.0,112040.0,0.03245]
[1757081774051,0.3608,112050.0,112040.0,0.28245]
[1757081774261,0.3608,112050.0,112040.0,0.72936824]
[1757081774752,0.3608,112050.0,112040.0,0.28245]
[1757081774952,0.3608,112050.0,112030.0,0.03245]
[1757081775151,0.3608,112040.0,112030.0,0.51936824]
[1757081775451,0.3608,112040.0,112030.0,0.47936824]
[1757081775655,0.3608,112040.0,112030.0,0.0001]
[1757081775656,0.6108,112040.0,112030.0,0.0001]
[1757081775853,0.3598,112040.0,112030.0,0.73130824]
[1757081776152,0.3598,112040.0,112030.0,0.82355524]
[1757081776351,0.0001,112050.0,112040.0,0.123529]
[1757081776551,0.001,112060.0,112050.0,0.03429]
[1757081776753,0.3608,112070.0,112060.0,0.03429]
[1757081777252,0.3608,112070.0,112050.0,0.03429]
[1757081777457,0.3608,112070.0,112060.0,0.48120824]
[1757081777755,0.3608,112070.0,112050.0,0.03429]
[1757081777952,0.3608,112060.0,112050.0,0.48120824]
[1757081778145,0.3608,112070.0,112050.0,0.48120824]
[1757081778553,0.3608,112070.0,112060.0,0.48120824]
[1757081779057,0.3608,112070.0,112060.0,0.001]
[1757081779359,0.3628,112070.0,112060.0,0.001]
[1757081779563,0.3628,112070.0,112060.0,0.73220824]
[1757081780057,0.3628,112070.0,112060.0,0.03529]
[1757081780249,0.3628,112070.0,112060.0,0.82143134]
[1757081780449,0.002,112070.0,112060.0,1.18223134]
[1757081780758,0.3628,112070.0,112060.0,0.73220824]
[1757081780965,0.3628,112070.0,112060.0,0.48220824]
[1757081781454,0.3628,112070.0,112060.0,0.73220824]
[1757081781658,0.3628,112070.0,112060.0,1.79356824]
[1757081782246,0.3638,112070.0,112060.0,1.34665]
[1757081782447,0.3638,112070.0,112060.0,1.09569]
[1757081782860,0.3638,112070.0,112060.0,0.03529]
[1757081783060,0.3638,112070.0,112060.0,1.43640824]
[1757081783562,0.3638,112070.0,112060.0,1.44109821]
[1757081784158,0.3638,112070.0,112060.0,0.48689821]
[1757081784356,0.3638,112070.0,112060.0,1.09301]
[1757081784559,0.3638,112070.0,112060.0,1.54461821]
[1757081785362,0.3638,112070.0,112060.0,1.09301]
[1757081785563,0.3638,112070.0,112060.0,1.54461821]
[1757081785952,0.3638,112070.0,112060.0,1.09301]
[1757081786156,0.3638,112070.0,112060.0,1.54461821]
[1757081786458,0.3638,112070.0,112060.0,1.09301]
[1757081786672,0.3638,112070.0,112060.0,0.48689821]
[1757081786855,1.09782821,112070.0,112060.0,0.001]
[1757081787162,0.64622,112070.0,112060.0,0.001]
[1757081787353,1.09782821,112070.0,112060.0,0.001]
[1757081787855,1.09782821,112070.0,112010.0,0.39519]
[1757081788060,0.7216,112020.0,112010.0,0.07429]
[1757081788353,0.7216,112020.0,112010.0,0.48589821]
[1757081788559,0.3608,112020.0,112010.0,0.48589821]
[1757081788761,0.3608,112020.0,112010.0,1.53869821]
[1757081788961,0.3608,112020.0,112010.0,1.54169821]
[1757081789155,0.3608,112040.0,112030.0,0.089247]
[1757081789358,0.04719324,112070.0,112050.0,0.1235149]
[1757081789558,0.40799324,112070.0,112060.0,0.45160821]
[1757081789759,0.44041324,112070.0,112060.0,0.45160821]
[1757081789959,0.04719324,112070.0,112060.0,0.90163151]
[1757081790356,0.04719324,112070.0,112060.0,1.18592151]
[1757081790667,0.05219324,112070.0,112060.0,1.18592151]
[1757081791263,0.05219324,112070.0,112060.0,0.81240821]
[1757081791560,0.05219324,112070.0,112060.0,1.15163121]
[1757081791764,0.41299324,112070.0,112050.0,1.05336]
[1757081792065,0.44641324,112070.0,112050.0,1.50496821]
[1757081792265,0.44441324,112070.0,112060.0,0.001]
[1757081792468,0.05119324,112070.0,112060.0,0.45260821]
[1757081792964,0.42172856,112070.0,112050.0,1.86576821]
[1757081793167,0.42172856,112070.0,112050.0,1.50496821]
[1757081793571,0.42072856,112070.0,112050.0,1.50396821]
[1757081793775,0.42372856,112070.0,112060.0,0.001]
[1757081794070,0.42372856,112070.0,112060.0,0.45260821]
[1757081794570,0.42372856,112070.0,112060.0,0.001]
[1757081794772,0.67472856,112070.0,112060.0,0.001]
[1757081795366,0.42272856,112070.0,112060.0,0.45160821]
[1757081795570,0.42272856,112070.0,112060.0,0.45170821]
[1757081795975,0.42172856,112070.0,112060.0,0.0001]
[1757081796164,0.42472856,112070.0,112060.0,0.45270821]
[1757081796558,0.42472856,112070.0,112060.0,0.0011]
[1757081796971,0.42472856,112070.0,112060.0,0.45270821]
[1757081797375,0.42472856,112070.0,112060.0,0.0011]
[1757081797672,0.42472856,112070.0,112060.0,0.45270821]
[1757081797874,0.42472856,112070.0,112060.0,0.0011]
[1757081798265,0.67472856,112070.0,112060.0,0.0011]
[1757081798463,1.12633677,112070.0,112060.0,0.0011]
[1757081798667,0.03242,112050.0,112030.0,0.45160821]
[1757081798875,0.3608,112050.0,112040.0,0.45160821]
[1757081799171,0.39322,112050.0,112040.0,0.45160821]
[1757081799373,0.39322,112050.0,112040.0,0.45606821]
[1757081800267,0.3608,112050.0,112040.0,0.45806821]
[1757081800571,0.39422,112050.0,112040.0,0.45806821]
[1757081800772,0.3618,112050.0,112040.0,0.45806821]
[1757081800968,0.39422,112050.0,112040.0,0.45806821]
[1757081801269,0.39422,112050.0,112040.0,0.00646]
[1757081801479,0.64422,112050.0,112040.0,0.00646]
[1757081801861,0.64422,112050.0,112040.0,0.00746]
[1757081802376,0.64722,112050.0,112040.0,0.00646]
[1757081802772,0.64722,112050.0,112040.0,0.45806821]
[1757081802973,0.64822,112050.0,112040.0,0.00646]
[1757081803173,0.65022,112050.0,112040.0,0.00546]
[1757081803566,0.40022,112050.0,112040.0,0.45706821]
[1757081803877,0.03242,112040.0,112000.0,2.185599]
[1757081804080,0.03242,112010.0,112000.0,0.099959]
[1757081804269,0.03242,112010.0,112000.0,0.55156721]
[1757081804962,1.09482821,112010.0,112000.0,0.099959]
[1757081805164,0.64322,112010.0,112000.0,0.101959]
[1757081805577,0.64322,112010.0,112000.0,0.103959]
[1757081805872,0.64322,112010.0,112000.0,0.101959]
[1757081806075,0.033,111990.0,111960.0,0.45160821]
[1757081806278,0.3608,111980.0,111960.0,0.45160821]